bitfinex/quotes_SOLUSD_20250901
["timestamp","ask_amount","ask_price","bid_price","bid_amount"]
[1756723518439,26.0,199.22,199.19,0.12]
[1756723518645,26.14216157,199.22,199.19,0.12]
[1756723518861,31.16173791,199.22,199.19,0.12]
[1756723519253,45.34733192,199.22,199.19,0.12]
[1756723519459,13.73775558,199.21,199.19,0.12]
[1756723519859,40.32775558,199.2,199.19,0.12]
[1756723520069,40.32775558,199.2,199.19,1e-08]
[1756723520565,0.14216157,199.19,199.18,1e-08]
[1756723520775,13.73775558,199.19,199.18,1e-08]
[1756723520981,19.34808792,199.19,199.18,1e-08]
[1756723522049,19.34808792,199.19,199.16,1e-08]
[1756723522050,39.73775558,199.17,199.16,1e-08]
[1756723522572,40.32775558,199.17,199.16,1e-08]
[1756723523071,44.75859205,199.17,199.16,1e-08]
[1756723524181,31.16299804,199.17,199.16,1e-08]
[1756723525977,0.14216157,199.17,199.16,0.68000001]
[1756723526183,0.14216157,199.17,199.16,1e-08]
[1756723526369,26.14216157,199.17,199.16,1e-08]
[1756723526575,0.14216157,199.17,199.16,1e-08]
[1756723526771,39.73775558,199.17,199.16,1e-08]
[1756723526974,26.14216157,199.17,199.16,0.68000001]
[1756723527272,13.59559401,199.22,199.16,0.68000001]
[1756723527588,26.0,199.19,199.16,0.68000001]
[1756723527769,26.0,199.19,199.17,0.68]
[1756723527950,26.0,199.19,199.16,1e-08]
[1756723528155,5.01937769,199.23,199.18,0.68]
[1756723528156,26.0,199.2,199.18,0.68]
[1756723528362,26.0,199.2,199.19,0.68]
[1756723528588,5.01937769,199.23,199.19,0.68]
[1756723528750,26.0,199.21,199.2,0.68]
[1756723528953,5.01967525,199.22,199.2,0.68]
[1756723529153,0.14216157,199.21,199.2,0.68]
[1756723529379,26.14216157,199.21,199.2,0.68]
[1756723529550,18.61416271,199.26,199.16,115.00000001]
[1756723529752,26.0,199.23,199.16,1e-08]
[1756723529984,0.14216157,199.18,199.16,1e-08]
[1756723530757,0.73216157,199.18,199.16,1e-08]
[1756723530959,5.02083647,199.17,199.16,1e-08]
[1756723531870,19.34859205,199.17,199.16,1e-08]
[1756723532683,136.71273,199.21,199.16,0.68000001]
[1756723532879,134.7,199.21,199.16,0.68000001]
[1756723533064,5.01983805,199.21,199.16,0.68000001]
[1756723533385,26.0,199.23,199.16,0.68000001]
[1756723533581,13.73775558,199.22,199.16,0.68000001]
[1756723533755,26.0,199.19,199.16,0.68000001]
[1756723533951,0.14216157,199.18,199.16,1e-08]
[1756723534369,13.73775558,199.18,199.16,1e-08]
[1756723535186,5.02063725,199.18,199.16,1e-08]
[1756723535384,26.0,199.19,199.17,0.68]
[1756723535564,26.0,199.19,199.18,0.68]
[1756723535758,31.01988636,199.21,199.18,0.68]
[1756723535967,31.01988636,199.21,199.19,0.68]
[1756723536171,26.0,199.21,199.16,1e-08]
[1756723536396,13.59559401,199.26,199.2,0.68]
[1756723536979,26.0,199.23,199.2,0.68]
[1756723537172,5.01957634,199.22,199.17,0.68]
[1756723537496,5.01957634,199.22,199.18,0.68]
[1756723537674,5.01957634,199.22,199.16,1e-08]
[1756723537871,5.01957634,199.22,199.17,0.68]
[1756723538176,5.01957634,199.22,199.18,0.68]
[1756723538386,26.0,199.19,199.16,1e-08]
[1756723539076,26.0,199.19,199.16,0.68000001]
[1756723539283,5.02055724,199.19,199.16,0.68000001]
[1756723539891,26.14216157,199.21,199.16,0.68000001]
[1756723539892,31.01987284,199.21,199.17,0.68]
[1756723540202,31.01987284,199.21,199.18,0.68]
[1756723540511,0.73216157,199.2,199.16,1e-08]
[1756723540979,14.18559401,199.19,199.16,1e-08]
[1756723541388,26.14216157,199.17,199.16,1e-08]
[1756723541974,26.0,199.18,199.16,0.68000001]
[1756723542375,26.0,199.17,199.16,1e-08]
[1756723543079,26.14216157,199.17,199.16,1e-08]
[1756723543392,31.16299804,199.17,199.16,1e-08]
[1756723543894,26.14216157,199.17,199.16,1e-08]
[1756723544075,26.14216157,199.19,199.16,0.68000001]
[1756723544595,5.02071296,199.18,199.16,1e-08]
[1756723544784,31.61071296,199.18,199.16,1e-08]
[1756723544980,31.02071296,199.18,199.16,1e-08]
[1756723545577,5.16299804,199.17,199.16,1e-08]
[1756723546470,18.75859205,199.17,199.16,1e-08]
[1756723546802,19.34859205,199.17,199.16,1e-08]
[1756723547001,45.34859205,199.17,199.16,1e-08]
[1756723547316,19.34859205,199.17,199.16,1e-08]
[1756723549397,44.75859205,199.17,199.16,1e-08]
[1756723549606,19.34859205,199.17,199.16,1e-08]
[1756723550907,45.34859205,199.17,199.16,1e-08]
[1756723551096,19.34859205,199.17,199.16,1e-08]
[1756723551483,0.14216157,199.15,199.13,0.1]
[1756723551695,28.80775558,199.13,199.12,1e-08]
[1756723552095,26.14216157,199.13,199.12,1e-08]
[1756723552297,39.73775558,199.12,199.11,1e-08]
[1756723552607,54.80775558,199.12,199.11,1e-08]
[1756723552816,40.32775558,199.12,199.11,1e-08]
[1756723553521,45.3498528,199.12,199.11,1e-08]
[1756723554182,39.73775558,199.08,198.99,0.12]
[1756723554684,39.59559401,199.04,198.99,0.12]
[1756723554884,39.73775558,199.04,198.99,0.12]
[1756723555411,44.76187133,199.04,198.99,0.12]
[1756723556615,44.76187133,199.04,198.99,0.79]
[1756723556831,31.16627732,199.04,199.03,0.77]
[1756723556980,31.16627732,199.04,199.03,0.1]
[1756723557494,31.16627732,199.04,199.03,0.77]
[1756723557691,26.14216157,199.04,199.03,0.77]
[1756723557898,0.14216157,199.04,199.03,0.77]
[1756723558981,5.16627732,199.04,199.03,0.77]
[1756723559807,0.14216157,199.04,199.03,0.77]
[1756723560007,26.0,199.07,199.03,0.77]
[1756723560218,18.61822296,199.1,199.03,0.77]
[1756723560388,5.941201,199.13,199.03,5.79435397]
[1756723560593,13.59559401,199.12,199.04,0.67]
[1756723560795,26.0,199.09,199.04,0.67]
[1756723560995,0.14216157,199.08,199.05,0.67]
[1756723561590,0.14216157,199.08,199.06,0.67]
[1756723562714,0.14216157,199.08,199.04,0.67]
[1756723563214,0.14216157,199.08,199.05,0.67]
[1756723563610,0.14216157,199.06,199.05,0.67]
[1756723566395,134.7,199.07,199.05,0.67]
[1756723566592,134.7,199.07,199.05,5.69383936]
[1756723567091,134.7,199.07,199.06,0.67]
[1756723568094,160.7,199.07,199.04,0.67]
[1756723568317,160.7,199.07,199.03,115.1]
[1756723568318,134.7,199.07,199.05,0.67]
[1756723568514,133.98,199.07,199.05,0.67]
[1756723568706,26.0,199.12,199.05,0.67]
[1756723569829,0.14216157,199.1,199.05,0.67]
[1756723570126,0.14216157,199.1,199.06,0.67]
[1756723570297,31.02234945,199.11,199.07,0.67]
[1756723570494,26.0,199.11,199.08,0.67]
[1756723570695,26.0,199.11,199.05,0.67]
[1756723571307,0.14216157,199.1,199.05,0.67]
[1756723571633,26.0,199.08,199.03,0.1]
[1756723571814,5.02335861,199.07,199.03,0.1]
[1756723572014,5.02335861,199.07,199.03,0.77]
[1756723572410,0.14216157,199.06,199.03,0.1]
[1756723572735,26.0,199.04,199.03,0.1]
[1756723573530,5.87247794,199.14,199.03,9.43452832]
[1756723573845,133.98,199.17,199.08,3.6402816]
[1756723574016,133.98,199.17,199.03,19.69779718]
[1756723574017,0.03,199.18,199.09,4.3102816]
[1756723574214,26.0,199.15,199.1,0.67]
[1756723574714,5.05067166,199.18,199.1,119.3102816]
[1756723574715,0.17216157,199.18,199.1,119.3102816]
[1756723574929,5.05063543,199.18,199.11,0.67]
[1756723575133,31.05063543,199.18,199.11,0.67]
[1756723575320,26.03,199.18,199.12,3.6402816]
[1756723575525,0.03,199.18,199.13,9.331888]
[1756723575729,0.03,199.18,199.15,3.6402816]
[1756723575928,0.03,199.18,199.16,3.6402816]
[1756723576311,0.03,199.18,199.14,3.6402816]
[1756723576512,0.03,199.18,199.12,5.02205104]
[1756723576513,0.03,199.18,199.17,0.67]
[1756723577826,0.03,199.18,199.17,9.33111807]
[1756723578028,0.03,199.18,199.17,11.50287863]
[1756723578842,0.03,199.18,199.17,25.09847264]
[1756723579017,0.03,199.18,199.17,25.24063421]
[1756723579434,0.03,199.2,199.18,13.73775558]
[1756723579749,0.03,199.2,199.19,5.02033234]
[1756723579940,0.03,199.2,199.19,0.67]
[1756723580523,0.03,199.2,199.17,5.81204216]
[1756723580718,0.03,199.2,199.18,0.67]
[1756723580932,0.03,199.2,199.19,115.0]
[1756723581137,0.03,199.2,199.19,115.67]
[1756723581320,0.03,199.2,199.19,121.48204216]
[1756723581517,0.03,199.2,199.19,126.5023745]
[1756723582318,0.03,199.2,199.19,140.09796851]
[1756723583532,0.03,199.22,199.21,5.01982832]
[1756723583839,0.03,199.25,199.22,13.59559401]
[1756723584040,0.03,199.25,199.24,19.40763617]
[1756723584550,0.03,199.25,199.24,20.06763617]
[1756723584844,0.03,199.25,199.24,14.25559401]
[1756723585045,0.03,199.25,199.24,22.07793917]
[1756723585440,0.03,199.25,199.24,16.26589701]
[1756723585628,0.03,199.25,199.24,27.09701164]
[1756723586862,0.03,199.25,199.24,142.09701164]
[1756723588254,0.03,199.25,199.24,136.28496948]
[1756723588553,0.03,199.25,199.24,142.09701164]
[1756723588952,0.03,199.25,199.24,139.42670864]
[1756723589264,0.03,199.25,199.24,120.81204216]
[1756723589781,0.03,199.25,199.24,115.0]
[1756723590268,0.75,199.25,199.2,5.81204216]
[1756723590465,0.75,199.25,199.19,5.02029255]
[1756723590669,0.75,199.25,199.2,5.81204216]
[1756723590966,0.03,199.25,199.22,13.59559401]
[1756723591170,0.03,199.25,199.23,0.66]
[1756723591757,0.03,199.25,199.24,5.81204216]
[1756723592070,0.03,199.25,199.24,6.47204216]
[1756723592290,0.03,199.25,199.24,20.06763617]
[1756723592579,0.03,199.25,199.24,25.08670864]
[1756723592770,0.03,199.27,199.25,13.59559401]
[1756723592968,0.03,199.27,199.26,5.81204216]
[1756723593146,0.03,199.27,199.26,6.47204216]
[1756723593790,0.03,199.27,199.26,12.23813616]
[1756723594090,0.03,199.27,199.25,115.0]
[1756723594260,0.03,199.27,199.26,13.59559401]
[1756723594460,0.03,199.27,199.25,115.0]
[1756723594672,0.03,199.27,199.25,120.81204216]
[1756723595592,0.03,199.27,199.25,115.0]
[1756723595976,0.72,199.26,199.25,115.0]
[1756723596404,0.03,199.27,199.25,115.0]
[1756723596693,0.72,199.26,199.2,5.81204216]
[1756723596894,0.72,199.26,199.19,19.40763617]
[1756723597394,0.72,199.26,199.2,5.81204216]
[1756723597696,5.73859598,199.26,199.19,50.42792502]
[1756723598075,0.72,199.26,199.19,50.42792502]
[1756723598386,0.72,199.26,199.2,5.81204216]
[1756723598596,5.73860573,199.26,199.19,40.25559401]
[1756723598769,0.72,199.26,199.2,5.81204216]
[1756723599584,0.72,199.26,199.2,120.81204216]
[1756723600161,0.72,199.26,199.21,5.01982832]
[1756723600366,0.72,199.26,199.21,5.67982832]
[1756723600770,0.72,199.25,199.2,120.02002212]
[1756723601109,0.72,199.24,199.2,115.0]
[1756723601798,5.04838194,199.27,199.2,115.0]
[1756723601978,0.72,199.23,199.2,115.0]
[1756723602307,5.73906733,199.25,199.2,115.0]
[1756723602518,0.72,199.25,199.2,115.0]
[1756723602824,0.03,199.27,199.23,5.81204216]
[1756723602979,0.03,199.27,199.24,20.06763617]
[1756723603311,0.03,199.27,199.25,0.66]
[1756723603804,0.03,199.27,199.26,0.66]
[1756723604306,0.03,199.27,199.26,5.6785687]
[1756723604892,0.03,199.27,199.26,11.49061086]
[1756723605103,0.03,199.27,199.26,0.66]
[1756723605284,0.03,199.27,199.24,13.59559401]
[1756723605490,0.72,199.26,199.2,0.66]
[1756723605998,0.72,199.26,199.19,5.81204216]
[1756723606183,5.73861722,199.26,199.19,5.81204216]
[1756723606391,0.72,199.26,199.19,6.47204216]
[1756723606595,0.03,199.27,199.21,5.81204216]
[1756723606879,5.04837923,199.27,199.2,6.47204216]
[1756723607084,5.76837923,199.27,199.21,115.0]
[1756723607289,0.72,199.26,199.21,115.0]
[1756723607490,5.04837923,199.27,199.16,5.81204216]
[1756723607491,0.72,199.25,199.16,5.81204216]
[1756723607694,0.72,199.24,199.16,5.81204216]
[1756723607895,0.72,199.24,199.15,14.25559401]
[1756723607896,0.72,199.24,199.15,20.06763617]
[1756723608210,0.72,199.24,199.17,5.81204216]
[1756723608389,5.73862935,199.26,199.18,6.47204216]
[1756723608595,0.72,199.26,199.19,0.66]
[1756723608799,5.73862494,199.26,199.19,0.66]
[1756723608998,26.03,199.27,199.19,0.66]
[1756723609292,31.048324,199.27,199.19,6.47204216]
[1756723609499,26.0,199.25,199.24,0.12]
[1756723609821,26.03,199.27,199.24,0.12]
[1756723610618,26.03,199.27,199.24,115.12]
[1756723611534,0.03,199.27,199.24,115.12]
[1756723611935,0.03,199.27,199.24,115.78]
[1756723612148,0.03,199.27,199.24,120.13903814]
[1756723612462,0.03,199.27,199.25,0.66]
[1756723612611,0.03,199.27,199.26,5.81204216]
[1756723612815,0.03,199.27,199.26,6.47204216]
[1756723613634,0.03,199.27,199.26,0.66]
[1756723614755,0.03,199.27,199.24,115.12]
[1756723615052,0.69,199.26,199.24,115.12]
[1756723615249,0.69,199.25,199.24,0.12]
[1756723615628,0.72,199.27,199.24,0.12]
[1756723615826,0.69,199.26,199.24,0.12]
[1756723616342,0.69,199.25,199.24,0.12]
[1756723617047,5.70882057,199.25,199.24,0.12]
[1756723617256,5.85098214,199.25,199.24,0.12]
[1756723617615,0.83216157,199.25,199.24,0.12]
[1756723617850,5.85098214,199.25,199.24,0.12]
[1756723620257,26.03,199.27,199.24,0.12]
[1756723620552,5.73833081,199.27,199.24,0.12]
[1756723620718,5.01882057,199.25,199.24,0.12]
[1756723620914,31.16098214,199.25,199.24,0.12]
[1756723621117,31.85098214,199.25,199.24,0.12]
[1756723621340,5.0185713,199.26,199.24,0.12]
[1756723621725,0.83216157,199.25,199.24,0.12]
[1756723622553,26.03,199.27,199.24,0.12]
[1756723622717,26.0,199.25,199.24,0.12]
[1756723623552,5.04842827,199.27,199.24,0.12]
[1756723623728,5.73842827,199.27,199.24,0.12]
[1756723623921,26.0,199.25,199.24,0.12]
[1756723624540,0.03,199.27,199.24,11.61097581]
[1756723624720,0.03,199.27,199.25,0.66]
[1756723624922,0.03,199.27,199.25,5.67859453]
[1756723625112,0.03,199.27,199.24,5.13901821]
[1756723625439,0.03,199.27,199.24,0.78]
[1756723625639,0.03,199.27,199.24,115.12]
[1756723627141,0.03,199.27,199.24,115.78]
[1756723627641,0.03,199.27,199.25,0.66]
[1756723627837,0.03,199.27,199.26,5.81204216]
[1756723628328,0.03,199.27,199.26,6.47204216]
[1756723628726,0.03,199.27,199.26,0.66]
[1756723628925,0.03,199.27,199.24,5.93204216]
[1756723629225,0.03,199.27,199.25,0.66]
[1756723630131,0.03,199.27,199.25,5.67870495]
[1756723630347,0.03,199.27,199.25,0.66]
[1756723630653,0.03,199.27,199.24,0.12]
[1756723631528,0.72,199.27,199.24,0.12]
[1756723631943,0.03,199.27,199.24,0.12]
[1756723632245,26.03,199.27,199.24,0.78]
[1756723632446,26.03,199.27,199.24,0.12]
[1756723632643,26.72,199.27,199.24,0.12]
[1756723633446,0.69,199.26,199.24,0.12]
[1756723633956,0.03,199.27,199.24,0.12]
[1756723634127,0.03,199.27,199.24,0.78]
[1756723634329,0.03,199.27,199.24,0.12]
[1756723635046,0.03,199.27,199.24,0.78]
[1756723635738,0.03,199.27,199.24,0.12]
[1756723636357,0.03,199.27,199.24,0.78]
[1756723636757,0.03,199.27,199.25,0.66]
[1756723636957,0.03,199.27,199.25,6.47204216]
[1756723637156,0.03,199.27,199.26,0.66]
[1756723637373,0.03,199.27,199.26,6.47204216]
[1756723638642,0.03,199.27,199.26,11.49061086]
[1756723639542,0.03,199.27,199.26,6.47204216]
[1756723640067,0.03,199.27,199.26,5.6785687]
[1756723640367,0.03,199.27,199.26,11.49061086]
[1756723641060,0.03,199.27,199.26,5.6785687]
[1756723642572,0.03,199.27,199.26,120.6785687]
[1756723642865,0.03,199.27,199.26,115.0]
[1756723643866,0.03,199.27,199.26,126.50061086]
[1756723644368,0.03,199.27,199.26,121.48204216]
[1756723644547,0.03,199.27,199.26,115.67]
[1756723644885,0.74,199.27,199.24,0.12]
[1756723647087,0.03,199.27,199.24,0.12]
[1756723647264,5.04843613,199.27,199.24,0.12]
[1756723647769,0.03,199.27,199.24,11.62110104]
[1756723647965,0.03,199.27,199.25,0.67]
[1756723648281,0.03,199.27,199.25,6.48204216]
[1756723648480,0.03,199.27,199.26,0.67]
[1756723649262,0.03,199.27,199.24,125.95110104]
[1756723649582,0.03,199.27,199.25,0.67]
[1756723649777,0.03,199.27,199.25,6.48204216]
[1756723649975,0.03,199.27,199.24,115.12]
[1756723650585,0.03,199.27,199.24,120.80898691]
[1756723651276,0.03,199.27,199.25,0.67]
[1756723651483,0.03,199.27,199.25,6.48204216]
[1756723651692,0.03,199.27,199.26,0.67]
[1756723652366,0.03,199.27,199.26,6.48204216]
[1756723653781,0.03,199.27,199.26,11.50061086]
[1756723653985,0.03,199.27,199.25,10.83081864]
[1756723654205,0.03,199.27,199.25,11.50081864]
[1756723654385,0.03,199.27,199.26,0.67]
[1756723655089,0.03,199.27,199.26,5.6885687]
[1756723656888,0.03,199.27,199.26,120.6885687]
[1756723657783,0.03,199.27,199.26,126.50061086]
[1756723657974,0.03,199.27,199.26,124.31891427]
[1756723658172,0.03,199.27,199.26,123.64891427]
[1756723658483,0.03,199.27,199.26,124.31891427]
[1756723658682,0.03,199.27,199.26,120.6885687]
[1756723660284,0.03,199.27,199.26,124.31891427]
[1756723662371,0.03,199.27,199.26,123.64891427]
[1756723662575,0.03,199.27,199.26,115.0]
[1756723662781,0.74,199.27,199.26,115.0]
[1756723662976,0.03,199.27,199.26,115.0]
[1756723663178,0.74,199.27,199.26,115.0]
[1756723663394,0.03,199.27,199.26,115.0]
[1756723664600,0.74,199.27,199.26,115.0]
[1756723667115,0.74,199.27,199.24,0.12]
[1756723667423,5.75832019,199.27,199.24,0.12]
[1756723668789,26.0,199.25,199.24,0.12]
[1756723669189,26.71,199.25,199.24,0.12]
[1756723669918,26.14216157,199.24,199.22,0.12]
[1756723670412,0.71,199.23,199.22,0.12]
[1756723670582,5.72932439,199.23,199.22,0.12]
[1756723677228,26.0,199.21,199.2,0.12]
[1756723677722,26.71,199.21,199.2,0.12]
[1756723678523,31.72982832,199.21,199.2,0.12]
[1756723683124,31.16198989,199.21,199.2,0.12]
[1756723683311,0.14216157,199.16,199.09,0.72]
[1756723683511,0.71,199.15,199.06,0.72]
[1756723684110,26.0,199.11,199.06,0.72]
[1756723684314,26.0,199.1,199.06,0.72]
[1756723685528,26.0,199.1,199.04,0.82]
[1756723685749,0.14216157,199.08,199.04,0.1]
[1756723685907,0.14216157,199.06,199.04,0.1]
[1756723686111,0.71,199.06,199.04,0.1]
[1756723686326,0.14216157,199.07,199.04,0.1]
[1756723686520,5.02363378,199.06,199.04,0.1]
[1756723687135,14.44775558,199.05,199.04,0.1]
[1756723688036,0.14216157,199.05,199.04,0.1]
[1756723688209,26.14216157,199.05,199.04,0.1]
[1756723688412,26.0,199.05,199.04,0.82]
[1756723689717,26.0,199.05,199.04,0.1]
[1756723690435,31.02377975,199.06,199.04,0.1]
[1756723690952,26.0,199.06,199.04,0.1]
[1756723691138,26.0,199.06,199.05,0.72]
[1756723691354,26.0,199.06,199.04,0.1]
[1756723691556,26.0,199.06,199.04,0.82]
[1756723691756,26.0,199.06,199.04,0.1]
[1756723692560,26.0,199.05,199.04,0.1]
[1756723692741,26.85216157,199.05,199.04,0.1]
[1756723692946,26.14216157,199.05,199.04,0.1]
[1756723693757,26.85216157,199.05,199.04,0.1]
[1756723694327,31.87602492,199.05,199.04,0.1]
[1756723695148,45.47161893,199.05,199.04,0.1]
[1756723696456,13.73775558,199.04,199.03,0.1]
[1756723697061,14.44775558,199.04,199.03,0.1]
[1756723697843,13.73775558,199.04,199.03,0.1]
[1756723698153,0.14216157,198.99,198.98,1e-08]
[1756723698338,22.73742452,198.99,198.98,1e-08]
[1756723698546,22.73742452,198.99,198.85,0.1]
[1756723698547,39.59559401,198.95,198.85,0.1]
[1756723698752,0.14216157,198.94,198.87,0.72]
[1756723698952,26.0,198.9,198.87,0.72]
[1756723699152,26.0,198.9,198.85,0.1]
[1756723699351,26.0,198.9,198.87,0.72]
[1756723699774,0.14216157,198.89,198.85,0.1]
[1756723700272,0.14216157,198.89,198.86,0.72]
[1756723700469,26.14216157,198.87,198.86,0.72]
[1756723700859,5.02780767,198.9,198.86,0.72]
[1756723701082,26.0,198.87,198.86,0.72]
[1756723701254,13.274936,198.97,198.86,0.72]
[1756723701582,5.02411575,199.04,198.88,3.63034557]
[1756723701880,5.02411575,199.04,198.86,18.32023603]
[1756723701881,26.0,198.97,198.89,0.7]
[1756723702058,0.14216157,198.92,198.89,0.7]
[1756723702258,0.14216157,198.92,198.87,0.7]
[1756723702569,5.02739932,198.91,198.87,0.7]
[1756723702769,26.0,198.88,198.85,0.8]
[1756723703073,0.14216157,198.87,198.85,0.8]
[1756723704160,26.0,198.88,198.85,0.8]
[1756723704362,31.02831969,198.88,198.85,0.8]
[1756723704564,26.14216157,198.9,198.86,0.7]
[1756723704775,26.14216157,198.9,198.87,0.7]
[1756723705083,26.14216157,198.9,198.88,0.7]
[1756723705270,25.87243309,198.99,198.88,0.7]
[1756723705271,0.7,198.98,198.88,0.7]
[1756723705453,14.29559401,198.97,198.89,0.7]
[1756723705654,13.59559401,198.98,198.89,0.7]
[1756723705890,0.7,198.99,198.89,0.7]
[1756723706251,13.59559401,198.98,198.89,0.7]
[1756723706585,26.0,198.94,198.89,0.7]
[1756723707253,26.0,198.94,198.89,4.33034557]
[1756723707453,26.0,198.96,198.9,0.7]
[1756723707854,13.73775558,198.94,198.86,0.7]
[1756723708075,0.14216157,198.92,198.86,0.7]
[1756723708466,26.0,198.88,198.85,0.1]
[1756723708660,26.0,198.88,198.86,0.7]
[1756723708860,26.0,198.88,198.87,0.7]
[1756723709457,26.0,198.88,198.85,0.1]
[1756723709680,26.0,198.88,198.86,0.7]
[1756723709865,26.0,198.88,198.85,0.1]
[1756723709866,26.0,198.87,198.85,0.1]
[1756723710071,0.14216157,198.87,198.85,0.1]
[1756723710684,0.84216157,198.87,198.85,0.1]
[1756723711987,5.17082495,198.86,198.85,0.1]
[1756723712371,5.87082495,198.86,198.85,0.1]
[1756723712574,26.14216157,198.84,198.83,0.1]
[1756723712774,39.73775558,198.84,198.83,0.1]
[1756723713087,40.43775558,198.84,198.83,0.1]
[1756723713297,26.84216157,198.84,198.83,0.1]
[1756723713500,26.14216157,198.84,198.83,0.1]
[1756723713865,31.17133075,198.84,198.83,0.1]
[1756723714209,31.87133075,198.84,198.83,0.1]
[1756723714567,0.14216157,198.84,198.83,0.1]
[1756723714770,26.14216157,198.87,198.83,0.1]
[1756723714958,26.0,198.87,198.84,0.7]
[1756723715167,0.14216157,198.88,198.83,0.1]
[1756723715468,0.14216157,198.86,198.83,0.1]
[1756723716474,0.14216157,198.86,198.83,0.8]
[1756723716677,26.0,198.9,198.84,0.7]
[1756723716880,5.02714659,198.92,198.84,0.7]
[1756723717195,0.7,198.95,198.84,0.7]
[1756723717365,26.0,198.91,198.84,6.53727947]
[1756723717562,5.02669264,198.94,198.85,0.7]
[1756723717765,5.02669264,198.94,198.85,6.53727947]
[1756723717992,0.14216157,198.93,198.86,5.72866338]
[1756723718286,0.14216157,198.93,198.87,0.7]
[1756723719091,0.14216157,198.91,198.84,0.7]
[1756723719272,26.7,198.9,198.83,0.1]
[1756723719463,0.14216157,198.85,198.83,0.1]
[1756723719663,0.84216157,198.84,198.83,0.1]
[1756723719864,5.87133075,198.84,198.83,0.1]
[1756723720160,5.17133075,198.84,198.83,0.1]
[1756723720558,26.0,198.85,198.83,0.8]
[1756723720762,26.0,198.85,198.83,0.1]
[1756723721397,26.0,198.85,198.84,0.7]
[1756723721600,134.7,198.88,198.84,0.7]
[1756723721804,160.7,198.88,198.84,0.7]
[1756723722003,0.14216157,198.9,198.83,5.12941842]
[1756723722004,5.02763406,198.91,198.85,0.7]
[1756723722301,26.0,198.88,198.83,0.8]
[1756723722489,26.0,198.88,198.84,0.7]
[1756723722698,26.0,198.88,198.85,0.7]
[1756723722895,5.02605697,198.97,198.86,0.7]
[1756723723205,6.537279,198.98,198.87,5.83727947]
[1756723723206,139.72623033,198.96,198.87,5.83727947]
[1756723723383,134.7,198.96,198.88,0.7]
[1756723723582,134.7,198.96,198.89,5.83727947]
[1756723723892,139.72613611,198.96,198.9,0.7]
[1756723724095,134.7,198.96,198.9,0.7]
[1756723724291,139.72626527,198.96,198.9,0.7]
[1756723724886,140.42626527,198.96,198.88,0.7]
[1756723725287,139.72626527,198.96,198.88,0.7]
[1756723725488,139.72626527,198.96,198.88,6.53727947]
[1756723725816,139.72626527,198.96,198.84,0.7]
[1756723725817,0.14216157,198.92,198.84,0.7]
[1756723726101,31.02739932,198.91,198.84,0.7]
[1756723726298,26.0,198.88,198.83,115.1]
[1756723726474,26.0,198.88,198.83,115.8]
[1756723727102,26.7,198.88,198.83,0.1]
[1756723727294,26.0,198.88,198.83,0.1]
[1756723727606,26.0,198.88,198.83,0.8]
[1756723728313,0.84216157,198.93,198.84,0.7]
[1756723728530,26.0,198.91,198.84,0.7]